[Event "*** Titled Tuesday 3|2 Blitz (Early)"]
[Site "Chess.com"]
[Date "2016.12.06"]
[Round "8"]
[White "Apocalyps999"]
[Black "pastouche06"]
[Result "1-0"]
[WhiteElo "2395"]
[BlackElo "2304"]
[TimeControl "180+2"]
[EndTime "12:45:03 PST"]
[Termination "Apocalyps999 won by resignation"]

1. c4 {[%clk 0:03:02]} 1... e6 {[%clk 0:03:00.1]} 2. g3 {[%clk 0:03:00.7]} 2...
d5 {[%clk 0:03:01]} 3. Bg2 {[%clk 0:03:01.7]} 3... Nf6 {[%clk 0:03:02.5]} 4. Nf3
{[%clk 0:03:02.6]} 4... d4 {[%clk 0:03:03.7]} 5. O-O {[%clk 0:03:02.8]} 5... c5
{[%clk 0:03:05]} 6. b4 {[%clk 0:02:56.5]} 6... cxb4 {[%clk 0:03:04.2]} 7. a3
{[%clk 0:02:57.7]} 7... Nc6 {[%clk 0:03:04.9]} 8. d3 {[%clk 0:02:55]} 8... a5
{[%clk 0:02:59.6]} 9. axb4 {[%clk 0:02:50.7]} 9... Bxb4 {[%clk 0:03:01.5]} 10.
Na3 {[%clk 0:02:51.6]} 10... O-O {[%clk 0:02:56.5]} 11. Nb5 {[%clk 0:02:52.2]}
11... Qe7 {[%clk 0:02:48.7]} 12. Nfxd4 {[%clk 0:02:49.9]} 12... Nxd4 {[%clk
0:02:47.4]} 13. Nxd4 {[%clk 0:02:50.6]} 13... Bc3 {[%clk 0:02:48.9]} 14. Ba3
{[%clk 0:02:51.4]} 14... Bb4 {[%clk 0:02:48.3]} 15. Qb3 {[%clk 0:02:46.9]} 15...
Bxa3 {[%clk 0:02:43.3]} 16. Rxa3 {[%clk 0:02:47.3]} 16... e5 {[%clk 0:02:42.9]}
17. Nc2 {[%clk 0:02:41.6]} 17... e4 {[%clk 0:02:41]} 18. d4 {[%clk 0:02:41]}
18... Bg4 {[%clk 0:02:39]} 19. Re1 {[%clk 0:02:38.7]} 19... Rfc8 {[%clk
0:02:30.8]} 20. Ne3 {[%clk 0:02:39.4]} 20... Bd7 {[%clk 0:02:27.5]} 21. c5
{[%clk 0:02:31.8]} 21... Be8 {[%clk 0:02:19.3]} 22. Nf5 {[%clk 0:02:30.8]} 22...
Qd7 {[%clk 0:02:08.9]} 23. Nd6 {[%clk 0:02:29.6]} 23... Rcb8 {[%clk 0:02:09.9]}
24. Rd1 {[%clk 0:02:14.2]} 24... b5 {[%clk 0:02:08.1]} 25. Nxe4 {[%clk
0:02:06.7]} 25... Nxe4 {[%clk 0:02:08.6]} 26. Bxe4 {[%clk 0:02:07]} 26... Ra7
{[%clk 0:02:10.2]} 27. d5 {[%clk 0:01:52.6]} 27... b4 {[%clk 0:02:11.3]} 28. c6
{[%clk 0:01:49.3]} 28... Qd6 {[%clk 0:02:09.7]} 29. Ra4 {[%clk 0:01:47.6]} 29...
f6 {[%clk 0:02:03.1]} 30. Rc1 {[%clk 0:01:45.5]} 30... Bf7 {[%clk 0:01:57.4]}
31. Qe3 {[%clk 0:01:37.5]} 31... Rba8 {[%clk 0:01:49.6]} 32. c7 {[%clk
0:01:27.5]} 32... Rxc7 {[%clk 0:01:39.8]} 33. Rxc7 {[%clk 0:01:27]} 33... Qxc7
{[%clk 0:01:41.7]} 34. d6 {[%clk 0:01:27.9]} 34... Qd7 {[%clk 0:01:43]} 35. Bxa8
{[%clk 0:01:28.1]} 35... Qxa4 {[%clk 0:01:44]} 36. Qe7 {[%clk 0:01:29]} 36...
Be8 {[%clk 0:01:39.8]} 37. Bd5+ {[%clk 0:01:28.6]} 1-0

[Event "*** Titled Tuesday 3|2 Blitz (Early)"]
[Site "Chess.com"]
[Date "2016.12.06"]
[Round "8"]
[White "Harbuzi01"]
[Black "Vrolijk"]
[Result "1-0"]
[WhiteElo "2693"]
[BlackElo "2231"]
[TimeControl "180+2"]
[EndTime "12:46:38 PST"]
[Termination "Harbuzi01 won by resignation"]

1. e4 {[%clk 0:02:49.4]} 1... g6 {[%clk 0:02:59.9]} 2. h4 {[%clk 0:02:43.5]}
2... d5 {[%clk 0:02:50.9]} 3. e5 {[%clk 0:02:42]} 3... h5 {[%clk 0:02:44.8]} 4.
Nh3 {[%clk 0:02:41]} 4... c5 {[%clk 0:02:36.1]} 5. Ng5 {[%clk 0:02:40.1]} 5...
e6 {[%clk 0:02:33.1]} 6. d4 {[%clk 0:02:38.8]} 6... cxd4 {[%clk 0:02:33.2]} 7.
Qxd4 {[%clk 0:02:39.3]} 7... Nc6 {[%clk 0:02:33.9]} 8. Bb5 {[%clk 0:02:38.2]}
8... Nh6 {[%clk 0:02:28.7]} 9. Nc3 {[%clk 0:02:34.1]} 9... Bg7 {[%clk
0:02:28.8]} 10. Bxc6+ {[%clk 0:02:26.7]} 10... bxc6 {[%clk 0:02:29.1]} 11. Bf4
{[%clk 0:02:27.7]} 11... Qb6 {[%clk 0:02:25.3]} 12. Nf3 {[%clk 0:02:20.4]} 12...
c5 {[%clk 0:02:19.6]} 13. Qd2 {[%clk 0:02:17.8]} 13... Ba6 {[%clk 0:02:09.9]}
14. Na4 {[%clk 0:02:16.2]} 14... Qb5 {[%clk 0:02:06.6]} 15. Nc3 {[%clk
0:02:09.7]} 15... Qb6 {[%clk 0:02:06.2]} 16. Na4 {[%clk 0:02:08.5]} 16... Qb5
{[%clk 0:02:06.7]} 17. b3 {[%clk 0:02:07.9]} 17... Nf5 {[%clk 0:01:59.6]} 18.
Nb2 {[%clk 0:02:05.9]} 18... O-O {[%clk 0:01:53.1]} 19. c4 {[%clk 0:02:04.1]}
19... dxc4 {[%clk 0:01:51.5]} 20. Nxc4 {[%clk 0:02:05]} 20... Rfd8 {[%clk
0:01:50.1]} 21. Qc3 {[%clk 0:02:03.1]} 21... Nd4 {[%clk 0:01:38.3]} 22. Nfd2
{[%clk 0:02:02.7]} 22... Qc6 {[%clk 0:01:33.3]} 23. f3 {[%clk 0:02:00.8]} 23...
Qd5 {[%clk 0:01:27.4]} 24. Kf2 {[%clk 0:01:59.4]} 24... Nb5 {[%clk 0:01:27.7]}
25. Qa5 {[%clk 0:01:58.2]} 25... Qc6 {[%clk 0:01:12.7]} 26. Ne4 {[%clk
0:01:56.7]} 26... Nd4 {[%clk 0:01:04.7]} 27. Rac1 {[%clk 0:01:51.7]} 27... Rac8
{[%clk 0:00:42.6]} 28. Ncd6 {[%clk 0:01:50.7]} 28... Rb8 {[%clk 0:00:34.6]} 29.
Qxc5 {[%clk 0:01:43.9]} 29... Qxc5 {[%clk 0:00:33.1]} 30. Rxc5 {[%clk 0:01:34]}
30... Rb4 {[%clk 0:00:29]} 31. Bg5 {[%clk 0:01:32.6]} 31... Rdb8 {[%clk
0:00:26.8]} 32. Bf4 {[%clk 0:01:26]} 32... Rd8 {[%clk 0:00:19.5]} 33. Rc7 {[%clk
0:01:25.7]} 33... Ne2 {[%clk 0:00:19.7]} 34. Bg5 {[%clk 0:01:24]} 34... Rf8
{[%clk 0:00:19]} 35. Bf6 {[%clk 0:01:21.8]} 35... Bxf6 {[%clk 0:00:20.3]} 36.
Nxf6+ {[%clk 0:01:22.6]} 36... Kg7 {[%clk 0:00:21.8]} 37. Nd7 {[%clk 0:01:22.8]}
37... Rd8 {[%clk 0:00:21.6]} 38. Nc5 {[%clk 0:01:23.9]} 38... Rf8 {[%clk
0:00:20.5]} 39. Nxe6+ {[%clk 0:01:24.8]} 1-0

[Event "*** Titled Tuesday 3|2 Blitz (Early)"]
[Site "Chess.com"]
[Date "2016.12.06"]
[Round "8"]
[White "Gabrielian_Artur"]
[Black "dretch"]
[Result "1-0"]
[WhiteElo "2600"]
[BlackElo "2591"]
[TimeControl "180+2"]
[EndTime "12:46:45 PST"]
[Termination "Gabrielian_Artur won on time"]

1. e4 {[%clk 0:03:02]} 1... e6 {[%clk 0:03:01]} 2. d4 {[%clk 0:03:00.2]} 2... d5
{[%clk 0:03:02.3]} 3. Nc3 {[%clk 0:02:59.4]} 3... Nf6 {[%clk 0:03:03.1]} 4. e5
{[%clk 0:03:00.4]} 4... Nfd7 {[%clk 0:03:04.1]} 5. f4 {[%clk 0:03:00.3]} 5... c5
{[%clk 0:03:06]} 6. Nf3 {[%clk 0:03:01.6]} 6... Nc6 {[%clk 0:03:07.7]} 7. Be3
{[%clk 0:03:02.9]} 7... cxd4 {[%clk 0:03:09.4]} 8. Nxd4 {[%clk 0:03:03.7]} 8...
Bc5 {[%clk 0:03:11.3]} 9. Qd2 {[%clk 0:03:04.1]} 9... O-O {[%clk 0:03:12.1]} 10.
O-O-O {[%clk 0:02:43.5]} 10... a6 {[%clk 0:02:56.9]} 11. Nb3 {[%clk 0:02:39.2]}
11... Be7 {[%clk 0:02:53.9]} 12. h4 {[%clk 0:02:35.4]} 12... b5 {[%clk
0:02:51.8]} 13. h5 {[%clk 0:02:35.1]} 13... Nb6 {[%clk 0:02:46.9]} 14. h6 {[%clk
0:02:24.3]} 14... g6 {[%clk 0:02:47.4]} 15. Qf2 {[%clk 0:02:25.6]} 15... Na4
{[%clk 0:02:45.7]} 16. Nxa4 {[%clk 0:02:16.5]} 16... bxa4 {[%clk 0:02:46.2]} 17.
Nd4 {[%clk 0:02:10.6]} 17... Bd7 {[%clk 0:02:44.2]} 18. a3 {[%clk 0:02:09.7]}
18... Rb8 {[%clk 0:02:33.5]} 19. Nxc6 {[%clk 0:02:09.3]} 19... Bxc6 {[%clk
0:02:35.4]} 20. Bd4 {[%clk 0:02:10.7]} 20... Qa5 {[%clk 0:02:17.8]} 21. Rh3
{[%clk 0:02:08.8]} 21... Rfc8 {[%clk 0:02:18.5]} 22. Rc3 {[%clk 0:02:09]} 22...
Bf8 {[%clk 0:01:40]} 23. g4 {[%clk 0:01:55.4]} 23... Bxh6 {[%clk 0:01:23.2]} 24.
Kb1 {[%clk 0:01:44.9]} 24... Bf8 {[%clk 0:01:17.5]} 25. f5 {[%clk 0:01:40.4]}
25... Bd7 {[%clk 0:01:15.6]} 26. Rh3 {[%clk 0:01:13.6]} 26... Qd8 {[%clk
0:00:07]} 27. fxg6 {[%clk 0:01:09.8]} 27... hxg6 {[%clk 0:00:06.9]} 28. Bxa6
{[%clk 0:00:58.9]} 28... Bg7 {[%clk 0:00:04.9]} 29. Bxc8 {[%clk 0:00:58.5]}
29... Qxc8 {[%clk 0:00:06.2]} 30. Rdh1 {[%clk 0:00:56.9]} 30... Qc7 {[%clk
0:00:02.2]} 31. Qf6 {[%clk 0:00:50.6]} 1-0

[Event "*** Titled Tuesday 3|2 Blitz (Early)"]
[Site "Chess.com"]
[Date "2016.12.06"]
[Round "8"]
[White "FearlessKing64"]
[Black "Astaneh"]
[Result "0-1"]
[WhiteElo "1999"]
[BlackElo "2459"]
[TimeControl "180+2"]
[EndTime "12:47:00 PST"]
[Termination "Astaneh won on time"]

1. e4 {[%clk 0:03:02]} 1... e5 {[%clk 0:02:59.8]} 2. Nf3 {[%clk 0:03:03.1]} 2...
Nc6 {[%clk 0:03:01.1]} 3. Bc4 {[%clk 0:03:04.6]} 3... Nf6 {[%clk 0:03:01.9]} 4.
d4 {[%clk 0:03:05.7]} 4... exd4 {[%clk 0:03:01.9]} 5. e5 {[%clk 0:03:07.6]} 5...
d5 {[%clk 0:03:03.5]} 6. Bb5 {[%clk 0:03:08.9]} 6... Ne4 {[%clk 0:03:01.6]} 7.
Nxd4 {[%clk 0:03:10]} 7... Bd7 {[%clk 0:03:01.5]} 8. Bxc6 {[%clk 0:03:07.4]}
8... bxc6 {[%clk 0:03:03.4]} 9. Be3 {[%clk 0:03:08.2]} 9... c5 {[%clk 0:02:58]}
10. Nb3 {[%clk 0:03:08.3]} 10... d4 {[%clk 0:02:58.1]} 11. Bf4 {[%clk
0:03:08.4]} 11... Bc6 {[%clk 0:02:48]} 12. O-O {[%clk 0:02:56.8]} 12... a5
{[%clk 0:02:38.4]} 13. c3 {[%clk 0:02:51.1]} 13... a4 {[%clk 0:02:16.7]} 14. Nc1
{[%clk 0:02:40.7]} 14... a3 {[%clk 0:02:06.7]} 15. bxa3 {[%clk 0:02:07]} 15...
dxc3 {[%clk 0:02:04]} 16. Qc2 {[%clk 0:02:04.9]} 16... Qd5 {[%clk 0:01:42.6]}
17. f3 {[%clk 0:01:08]} 17... Qd4+ {[%clk 0:01:24.6]} 18. Kh1 {[%clk 0:01:03.7]}
18... Bb5 {[%clk 0:00:52.5]} 19. Nb3 {[%clk 0:00:34.9]} 19... Qd3 {[%clk
0:00:35.3]} 20. Rc1 {[%clk 0:00:27.9]} 20... Qxc2 {[%clk 0:00:28.5]} 21. Rxc2
{[%clk 0:00:29.2]} 21... Bd3 {[%clk 0:00:30.2]} 22. Rc1 {[%clk 0:00:29.1]} 22...
c2 {[%clk 0:00:31.5]} 23. N1d2 {[%clk 0:00:25.6]} 23... Nc3 {[%clk 0:00:29.4]}
24. Nf1 {[%clk 0:00:10.2]} 24... Ne2 {[%clk 0:00:26.3]} 25. Re1 {[%clk
0:00:10.6]} 25... Nxf4 {[%clk 0:00:27.1]} 26. Ng3 {[%clk 0:00:11.2]} 26... Rxa3
{[%clk 0:00:24.6]} 27. Rac1 {[%clk 0:00:10.2]} 27... c4 {[%clk 0:00:24.4]} 28.
Nd2 {[%clk 0:00:10.1]} 28... Bb4 {[%clk 0:00:25.2]} 0-1

[Event "*** Titled Tuesday 3|2 Blitz (Early)"]
[Site "Chess.com"]
[Date "2016.12.06"]
[Round "8"]
[White "Grootneus"]
[Black "ZhuChenChess"]
[Result "0-1"]
[WhiteElo "2081"]
[BlackElo "2374"]
[TimeControl "180+2"]
[EndTime "12:47:18 PST"]
[Termination "ZhuChenChess won on time"]

1. e4 {[%clk 0:03:02]} 1... c5 {[%clk 0:03:00.3]} 2. b4 {[%clk 0:03:02.8]} 2...
cxb4 {[%clk 0:02:57.1]} 3. a3 {[%clk 0:03:04.2]} 3... bxa3 {[%clk 0:02:56]} 4.
d4 {[%clk 0:03:04.6]} 4... e6 {[%clk 0:02:44.5]} 5. Bd3 {[%clk 0:03:02.8]} 5...
Nc6 {[%clk 0:02:30]} 6. Ne2 {[%clk 0:03:02.4]} 6... a2 {[%clk 0:02:26]} 7. Rxa2
{[%clk 0:03:03]} 7... Nb4 {[%clk 0:02:27]} 8. Ra1 {[%clk 0:03:00.2]} 8... Nxd3+
{[%clk 0:02:27.4]} 9. Qxd3 {[%clk 0:03:02.1]} 9... Nf6 {[%clk 0:02:19.9]} 10.
O-O {[%clk 0:02:59.7]} 10... Be7 {[%clk 0:02:14.8]} 11. f4 {[%clk 0:02:18.5]}
11... d5 {[%clk 0:02:12.4]} 12. e5 {[%clk 0:02:16.7]} 12... Ne4 {[%clk
0:02:12.7]} 13. c4 {[%clk 0:02:10.2]} 13... O-O {[%clk 0:02:10.6]} 14. cxd5
{[%clk 0:01:58.8]} 14... Qxd5 {[%clk 0:02:03]} 15. Nbc3 {[%clk 0:01:58.2]} 15...
Nxc3 {[%clk 0:02:02.7]} 16. Nxc3 {[%clk 0:02:00.1]} 16... Qd8 {[%clk 0:01:55.9]}
17. Ba3 {[%clk 0:01:55.3]} 17... Bd7 {[%clk 0:01:20]} 18. Bxe7 {[%clk
0:00:57.3]} 18... Qxe7 {[%clk 0:01:20]} 19. Ne4 {[%clk 0:00:59]} 19... Bc6
{[%clk 0:01:13.8]} 20. Nd6 {[%clk 0:01:00.2]} 20... a5 {[%clk 0:01:03.4]} 21.
Rfe1 {[%clk 0:00:18.9]} 21... Rfd8 {[%clk 0:00:56.1]} 22. Re3 {[%clk 0:00:17.6]}
22... a4 {[%clk 0:00:54.2]} 23. Rh3 {[%clk 0:00:16.8]} 23... g6 {[%clk
0:00:48.8]} 24. Ra3 {[%clk 0:00:11]} 24... Rxd6 {[%clk 0:00:48.3]} 25. exd6
{[%clk 0:00:12.1]} 25... Qxd6 {[%clk 0:00:49.3]} 26. Re3 {[%clk 0:00:07.1]}
26... b5 {[%clk 0:00:49.5]} 27. Re1 {[%clk 0:00:04.7]} 27... b4 {[%clk 0:00:50]}
28. Raa1 {[%clk 0:00:06.4]} 28... Qxf4 {[%clk 0:00:48.6]} 29. Rf1 {[%clk
0:00:07.1]} 29... Qd6 {[%clk 0:00:42.7]} 30. Qc2 {[%clk 0:00:06.9]} 30... a3
{[%clk 0:00:33.7]} 31. Rfb1 {[%clk 0:00:02.8]} 31... Bd5 {[%clk 0:00:33]} 0-1

[Event "*** Titled Tuesday 3|2 Blitz (Early)"]
[Site "Chess.com"]
[Date "2016.12.06"]
[Round "8"]
[White "FrankieJay"]
[Black "Wolverine_master"]
[Result "0-1"]
[WhiteElo "2194"]
[BlackElo "2044"]
[TimeControl "180+2"]
[EndTime "12:47:22 PST"]
[Termination "Wolverine_master won on time"]

1. e4 {[%clk 0:03:02]} 1... d5 {[%clk 0:02:59.9]} 2. exd5 {[%clk 0:03:03.1]}
2... Qxd5 {[%clk 0:03:01.8]} 3. Nc3 {[%clk 0:03:04.7]} 3... Qd6 {[%clk
0:03:02.9]} 4. d4 {[%clk 0:03:05.5]} 4... Nf6 {[%clk 0:03:04.3]} 5. Nf3 {[%clk
0:03:06.9]} 5... a6 {[%clk 0:03:05.8]} 6. g3 {[%clk 0:03:07.1]} 6... Nc6 {[%clk
0:03:01.1]} 7. Bg2 {[%clk 0:03:08.2]} 7... Bg4 {[%clk 0:03:01.4]} 8. Bf4 {[%clk
0:03:04.2]} 8... Qb4 {[%clk 0:02:42.7]} 9. h3 {[%clk 0:02:52.8]} 9... Bh5 {[%clk
0:02:41.9]} 10. g4 {[%clk 0:02:39.6]} 10... Bg6 {[%clk 0:02:41.6]} 11. Bxc7
{[%clk 0:02:24.7]} 11... Nd5 {[%clk 0:02:32.9]} 12. a3 {[%clk 0:02:14.1]} 12...
Nxc3 {[%clk 0:02:10.9]} 13. axb4 {[%clk 0:02:13.3]} 13... Nxd1 {[%clk
0:02:12.2]} 14. Rxd1 {[%clk 0:02:14.8]} 14... Nxb4 {[%clk 0:02:13.5]} 15. c3
{[%clk 0:02:03.8]} 15... Nd5 {[%clk 0:02:11.4]} 16. Bg3 {[%clk 0:01:57.2]} 16...
e6 {[%clk 0:02:10.3]} 17. Ne5 {[%clk 0:01:58.6]} 17... O-O-O {[%clk 0:01:51.6]}
18. O-O {[%clk 0:01:43.5]} 18... Bd6 {[%clk 0:01:42.9]} 19. c4 {[%clk
0:01:31.1]} 19... Nf6 {[%clk 0:01:20]} 20. Rfe1 {[%clk 0:01:28.1]} 20... Bb4
{[%clk 0:00:42.6]} 21. Re3 {[%clk 0:01:28.7]} 21... Bd6 {[%clk 0:00:38.5]} 22.
Rb3 {[%clk 0:01:07.8]} 22... Bc2 {[%clk 0:00:35.3]} 23. Rxb7 {[%clk 0:00:49.5]}
23... Bxd1 {[%clk 0:00:29.2]} 24. Nxf7 {[%clk 0:00:10.2]} 24... Bxg3 {[%clk
0:00:24.1]} 25. fxg3 {[%clk 0:00:11.6]} 25... Rhf8 {[%clk 0:00:18.7]} 26. c5
{[%clk 0:00:05.9]} 26... Nd5 {[%clk 0:00:18.8]} 27. Ra7 {[%clk 0:00:04.1]} 27...
Kb8 {[%clk 0:00:19.3]} 0-1

[Event "*** Titled Tuesday 3|2 Blitz (Early)"]
[Site "Chess.com"]
[Date "2016.12.06"]
[Round "8"]
[White "josiwales"]
[Black "Rating-Schmating"]
[Result "0-1"]
[WhiteElo "2233"]
[BlackElo "2225"]
[TimeControl "180+2"]
[EndTime "12:47:25 PST"]
[Termination "Rating-Schmating won by resignation"]

1. e4 {[%clk 0:03:02]} 1... e6 {[%clk 0:03:00.2]} 2. d3 {[%clk 0:03:03.1]} 2...
d5 {[%clk 0:03:00.9]} 3. Qe2 {[%clk 0:03:04.4]} 3... dxe4 {[%clk 0:02:57.2]} 4.
dxe4 {[%clk 0:03:05.2]} 4... c5 {[%clk 0:02:58]} 5. Nf3 {[%clk 0:03:06.8]} 5...
Nc6 {[%clk 0:02:58.9]} 6. c3 {[%clk 0:03:08.2]} 6... b6 {[%clk 0:02:59.1]} 7.
Qc2 {[%clk 0:03:09.5]} 7... Bb7 {[%clk 0:03:00.2]} 8. Bg5 {[%clk 0:03:06.8]}
8... Be7 {[%clk 0:03:00.7]} 9. Bxe7 {[%clk 0:03:07.4]} 9... Ngxe7 {[%clk
0:03:01.9]} 10. Nbd2 {[%clk 0:03:09.3]} 10... Qc7 {[%clk 0:03:03.1]} 11. O-O-O
{[%clk 0:03:08]} 11... a6 {[%clk 0:03:04.2]} 12. Nc4 {[%clk 0:03:08.9]} 12...
O-O {[%clk 0:03:00.9]} 13. Nd6 {[%clk 0:03:09.5]} 13... Rad8 {[%clk 0:02:59.9]}
14. e5 {[%clk 0:02:53.2]} 14... Ng6 {[%clk 0:02:57.4]} 15. Nc4 {[%clk
0:02:48.3]} 15... b5 {[%clk 0:02:57.4]} 16. Nd6 {[%clk 0:02:46.4]} 16... Ncxe5
{[%clk 0:02:55.5]} 17. Nxb7 {[%clk 0:02:46.6]} 17... Qxb7 {[%clk 0:02:54.6]} 18.
Be2 {[%clk 0:02:47.5]} 18... Ng4 {[%clk 0:02:51.1]} 19. Rhf1 {[%clk 0:02:05.6]}
19... Nf6 {[%clk 0:02:48.4]} 20. h3 {[%clk 0:01:57.6]} 20... Qe4 {[%clk
0:02:47.2]} 21. Qxe4 {[%clk 0:01:46]} 21... Nxe4 {[%clk 0:02:47.8]} 22. Bd3
{[%clk 0:01:47.4]} 22... Nf6 {[%clk 0:02:47.2]} 23. Bxg6 {[%clk 0:01:47.5]}
23... hxg6 {[%clk 0:02:48.2]} 24. Ne5 {[%clk 0:01:48.6]} 24... Nd5 {[%clk
0:02:45.8]} 25. Rfe1 {[%clk 0:01:44.1]} 25... Rc8 {[%clk 0:02:45.3]} 26. g3
{[%clk 0:01:39.7]} 26... Rfd8 {[%clk 0:02:43.1]} 27. f4 {[%clk 0:01:37.5]} 27...
Ne7 {[%clk 0:02:26.8]} 28. g4 {[%clk 0:01:22.5]} 28... Nd5 {[%clk 0:02:23.3]}
29. Re4 {[%clk 0:01:02.6]} 29... Kf8 {[%clk 0:02:17]} 30. h4 {[%clk 0:01:01.7]}
30... Ne7 {[%clk 0:02:14.3]} 31. Ree1 {[%clk 0:00:59.4]} 31... f6 {[%clk
0:02:13.1]} 32. Nd3 {[%clk 0:00:43]} 32... Kf7 {[%clk 0:02:10.8]} 33. Nf2 {[%clk
0:00:37.3]} 33... Nd5 {[%clk 0:02:09.4]} 34. Ne4 {[%clk 0:00:37.4]} 34... Ke7
{[%clk 0:01:59.6]} 35. f5 {[%clk 0:00:35.7]} 35... gxf5 {[%clk 0:01:57.8]} 36.
gxf5 {[%clk 0:00:36]} 36... e5 {[%clk 0:01:55.2]} 37. Rg1 {[%clk 0:00:37]} 37...
Kf7 {[%clk 0:01:53.3]} 38. Rg6 {[%clk 0:00:34.3]} 38... Nf4 {[%clk 0:01:51.6]}
39. Nd6+ {[%clk 0:00:33.9]} 39... Rxd6 {[%clk 0:01:52.3]} 40. Rxd6 {[%clk
0:00:32.6]} 40... Nxg6 {[%clk 0:01:52.6]} 41. fxg6+ {[%clk 0:00:34.5]} 41...
Kxg6 {[%clk 0:01:54.2]} 42. Rxa6 {[%clk 0:00:36.4]} 42... Rb8 {[%clk 0:01:51.3]}
43. Rc6 {[%clk 0:00:37.1]} 43... c4 {[%clk 0:01:52.2]} 44. Kd2 {[%clk
0:00:34.3]} 44... Rb7 {[%clk 0:01:52.2]} 45. Ke3 {[%clk 0:00:35.6]} 45... Kh5
{[%clk 0:01:52.9]} 46. b3 {[%clk 0:00:31.5]} 46... cxb3 {[%clk 0:01:54]} 47.
axb3 {[%clk 0:00:33.4]} 47... Kxh4 {[%clk 0:01:55.3]} 48. Ke4 {[%clk 0:00:34.9]}
48... Kg5 {[%clk 0:01:54.1]} 49. c4 {[%clk 0:00:30.4]} 49... bxc4 {[%clk
0:01:55.1]} 50. bxc4 {[%clk 0:00:32.3]} 50... g6 {[%clk 0:01:55.8]} 51. c5
{[%clk 0:00:30.8]} 51... Re7 {[%clk 0:01:53.8]} 52. Rc8 {[%clk 0:00:28.2]} 52...
f5+ {[%clk 0:01:55.1]} 53. Ke3 {[%clk 0:00:29.6]} 53... Kg4 {[%clk 0:01:52.7]}
54. c6 {[%clk 0:00:30.4]} 54... g5 {[%clk 0:01:53.7]} 55. Ra8 {[%clk 0:00:25.6]}
55... Rc7 {[%clk 0:01:52.7]} 56. Ra6 {[%clk 0:00:20.7]} 56... f4+ {[%clk
0:01:53.4]} 57. Ke4 {[%clk 0:00:21.9]} 57... f3 {[%clk 0:01:54.3]} 58. Ra1
{[%clk 0:00:20.6]} 58... f2 {[%clk 0:01:51.5]} 59. Rf1 {[%clk 0:00:20.5]} 59...
Kg3 {[%clk 0:01:52.3]} 60. Ke3 {[%clk 0:00:20.9]} 60... Rxc6 {[%clk 0:01:53.8]}
61. Rxf2 {[%clk 0:00:21]} 61... Rc3+ {[%clk 0:01:54.9]} 0-1

[Event "*** Titled Tuesday 3|2 Blitz (Early)"]
[Site "Chess.com"]
[Date "2016.12.06"]
[Round "8"]
[White "MateusViageiro"]
[Black "viktorskliarov"]
[Result "0-1"]
[WhiteElo "2260"]
[BlackElo "2467"]
[TimeControl "180+2"]
[EndTime "12:47:36 PST"]
[Termination "viktorskliarov won by resignation"]

1. e4 {[%clk 0:03:01.2]} 1... c5 {[%clk 0:03:00.9]} 2. Nf3 {[%clk 0:03:01.8]}
2... Nc6 {[%clk 0:03:02.1]} 3. Bb5 {[%clk 0:03:02.1]} 3... e6 {[%clk 0:03:02.6]}
4. O-O {[%clk 0:03:00]} 4... Nge7 {[%clk 0:03:03.6]} 5. c3 {[%clk 0:03:00.1]}
5... a6 {[%clk 0:03:04.6]} 6. Ba4 {[%clk 0:03:00.4]} 6... b5 {[%clk 0:03:05.6]}
7. Bc2 {[%clk 0:03:01.1]} 7... d5 {[%clk 0:03:06.7]} 8. exd5 {[%clk 0:02:59.8]}
8... Nxd5 {[%clk 0:03:06.1]} 9. d4 {[%clk 0:02:59.8]} 9... Bb7 {[%clk 0:03:07]}
10. Re1 {[%clk 0:02:57.4]} 10... cxd4 {[%clk 0:03:07.2]} 11. Nxd4 {[%clk
0:02:57.7]} 11... Nxd4 {[%clk 0:03:08.2]} 12. Qxd4 {[%clk 0:02:57.9]} 12... Qb6
{[%clk 0:03:09.2]} 13. Qg4 {[%clk 0:02:53.9]} 13... Bc5 {[%clk 0:03:07.4]} 14.
Re2 {[%clk 0:02:51.3]} 14... g6 {[%clk 0:03:00.2]} 15. a4 {[%clk 0:02:48.8]}
15... b4 {[%clk 0:02:44.7]} 16. Bh6 {[%clk 0:02:46.2]} 16... O-O-O {[%clk
0:02:33.6]} 17. c4 {[%clk 0:02:38.1]} 17... Nf6 {[%clk 0:01:58.5]} 18. Qh4
{[%clk 0:02:26]} 18... b3 {[%clk 0:01:52.4]} 19. Nc3 {[%clk 0:02:23.9]} 19...
bxc2 {[%clk 0:01:51.5]} 20. Rxc2 {[%clk 0:02:19.4]} 20... Qc6 {[%clk 0:01:31.7]}
21. Qh3 {[%clk 0:01:59.7]} 21... Ne4 {[%clk 0:01:29.6]} 22. Nxe4 {[%clk
0:01:38]} 22... Qxe4 {[%clk 0:01:30]} 23. Rcc1 {[%clk 0:01:35.1]} 23... g5
{[%clk 0:01:23]} 24. b4 {[%clk 0:01:27.4]} 24... g4 {[%clk 0:01:23.3]} 25. Qg3
{[%clk 0:01:18.4]} 25... Bd6 {[%clk 0:01:24.2]} 26. f3 {[%clk 0:01:14.2]} 26...
Qd4+ {[%clk 0:01:11.4]} 27. Qf2 {[%clk 0:01:12.6]} 27... Bxh2+ {[%clk
0:01:11.7]} 28. Kf1 {[%clk 0:01:05.4]} 28... Qd3+ {[%clk 0:01:12.6]} 29. Qe2
{[%clk 0:01:04.1]} 29... gxf3 {[%clk 0:01:13.3]} 30. gxf3 {[%clk 0:01:03.7]}
30... Bxf3 {[%clk 0:01:13.2]} 31. Qxd3 {[%clk 0:01:04.3]} 31... Rxd3 {[%clk
0:01:13.9]} 32. b5 {[%clk 0:01:05.5]} 32... Rhd8 {[%clk 0:00:55.8]} 33. c5
{[%clk 0:01:01.5]} 33... Be5 {[%clk 0:00:47.9]} 34. Rab1 {[%clk 0:01:00.6]}
34... Bd4 {[%clk 0:00:48.1]} 35. c6 {[%clk 0:00:57.4]} 35... Rg8 {[%clk
0:00:47.9]} 0-1